[Event "European Womens-ch 2025"]
[Site "Rhodes"]
[Date "2025.04.01"]
[Round "2.23"]
[White "Radeva, Viktoria"]
[Black "Bochnickova, Andrea"]
[Result "1-0"]
[Annotator "RC"]
[ECO "B33"]
[WhiteElo "2297"]
[BlackElo "2051"]
[PlyCount "73"]
[EventDate "2025.03.29"]
[EventType "swiss"]
[EventCountry "GRE"]
[SourceTitle "playchess.com"]
[Source "ChessBase"]
[SourceQuality "1"]
[TimeControl "40/5400+30:1800+30"]

1. e4 {[%emt 0:00:51]} c5 {[%emt 0:00:07]} 2. Nf3 {[%emt 0:00:50]} Nc6 {[%emt 0:00:15]} 3. d4 {[%emt 0:00:45]} cxd4 {[%emt 0:00:06]} 4. Nxd4 {[%emt 0:00:03]} Nf6 {[%emt 0:00:08]} 5. Nc3 {[%emt 0:00:11]} e5 {[%emt 0:00:05]} 6. Ndb5 {[%emt 0:00:11]} d6 {[%emt 0:00:11]} 7. Bg5 {[%emt 0:00:23]} a6 {[%emt 0:00:07]} 8. Na3 {[%emt 0:00:08]} b5 {[%emt 0:00:07]} 9. Nd5 {[%emt 0:00:15]} Be7 {[%emt 0:00:08]} 10. Bxf6 {[%emt 0:00:05]} Bxf6 {[%emt 0:00:06]} 11. c4 {[%emt 0:00:08]} b4 {[%emt 0:03:21]} 12. Nc2 {[%emt 0:00:41]} Rb8 {[%emt 0:00:56]} 13. b3 {[%emt 0:00:33]} O-O {[%emt 0:00:15]} 14. h4 {[%emt 0:17:31]} Be6 {[%emt 0:13:59]} 15. g3 {[%emt 0:04:58]} a5 {[%emt 0:04:11]} 16. Bd3 {[%emt 0:03:38]} Bxd5 {[%emt 0:05:15]} 17. cxd5 {[%emt 0:01:24]} Nd4 {[%emt 0:01:06]} 18. Nxd4 {[%emt 0:00:50]} exd4 {[%emt 0:00:06]} 19. Kf1 {[%emt 0:01:56]} Rc8 {[%emt 0:06:11]} 20. Kg2 {[%emt 0:00:57]} Rc3 {[%emt 0:01:01]} 21. f4 {[%emt 0:14:39]} Qd7 {[%emt 0:06:39]} 22. Qf3 {[%emt 0:19:59]} Re8 {[%emt 0:05:22]} 23. Rhe1 {[%emt 0:01:57]} g6 {[%emt 0:06:38]} 24. Re2 {[%emt 0:05:35]} Bg7 {[%emt 0:05:15]} 25. Rae1 {[%emt 0:00:45]} Qc7 {[%emt 0:05:17]} 26. h5 {[%emt 0:01:49]} g5 {[%emt 0:03:02]} 27. e5 {[%emt 0:04:09]} gxf4 {[%emt 0:05:37]} 28. gxf4 {[%emt 0:06:21]} dxe5 {[%emt 0:10:29]} 29. fxe5 {[%emt 0:00:06]} Rxe5 {[%emt 0:02:29]} 30. Rxe5 {[%emt 0:00:48]} Bxe5 {[%emt 0:00:06]} 31. Qf5 {[%emt 0:04:01]} f6 {[%emt 0:01:57]} 32. h6 {[%emt 0:01:59]} Qf7 {[%emt 0:01:55]} 33. Kf2 {[%emt 0:02:55]} Kf8 {[%emt 0:02:28]} 34. Rg1 {[%emt 0:01:19]} Rxd3 {[%emt 0:04:49]} 35. Qc8+ {[%emt 0:00:29]} Ke7 {[%emt 0:00:12]} 36. Rg7 {[%emt 0:00:27]} Rc3 {[%emt 0:00:18]} 37. Qe6+ {[%emt 0:00:10]} 1-0

[Event "European Womens-ch 2025"]
[Site "Rhodes"]
[Date "2025.04.01"]
[Round "2.24"]
[White "Golsta, Madara"]
[Black "Yao, Lan"]
[Result "0-1"]
[Annotator "RC"]
[ECO "B92"]
[WhiteElo "1979"]
[BlackElo "2294"]
[PlyCount "70"]
[EventDate "2025.03.29"]
[EventType "swiss"]
[EventCountry "GRE"]
[SourceTitle "playchess.com"]
[Source "ChessBase"]
[SourceQuality "1"]
[TimeControl "40/5400+30:1800+30"]

1. e4 {[%emt 0:00:03]} c5 {[%emt 0:01:45]} 2. Nf3 {[%emt 0:00:11]} d6 {[%emt 0:00:07]} 3. d4 {[%emt 0:00:17]} cxd4 {[%emt 0:00:09]} 4. Nxd4 {[%emt 0:00:07]} Nf6 {[%emt 0:00:07]} 5. Nc3 {[%emt 0:00:12]} a6 {[%emt 0:00:07]} 6. Be2 {[%emt 0:02:07]} e5 {[%emt 0:00:05]} 7. Nf3 {[%emt 0:01:00]} Be7 {[%emt 0:00:13]} 8. Qd3 {[%emt 0:00:43]} Be6 {[%emt 0:04:38]} 9. Bg5 {[%emt 0:02:32]} Nbd7 {[%emt 0:00:46]} 10. O-O {[%emt 0:04:43]} O-O {[%emt 0:00:25]} 11. a4 {[%emt 0:23:55]} h6 {[%emt 0:02:44]} 12. Bc1 {[%emt 0:06:36]} Qc7 {[%emt 0:04:55]} 13. h3 {[%emt 0:08:16]} Rac8 {[%emt 0:02:57]} 14. Rd1 {[%emt 0:10:30]} Rfd8 {[%emt 0:03:52]} 15. Nd2 {[%emt 0:09:46]} Nf8 {[%emt 0:04:58]} 16. Qg3 {[%emt 0:01:52]} Ng6 {[%emt 0:01:14]} 17. Nf1 {[%emt 0:02:05]} Qc6 {[%emt 0:24:40]} 18. Bf3 {[%emt 0:04:57]} Nh7 {[%emt 0:06:10]} 19. Ne3 {[%emt 0:03:38]} Bh4 {[%emt 0:02:09]} 20. Qh2 {[%emt 0:00:13]} Ng5 {[%emt 0:00:48]} 21. Ned5 {[%emt 0:09:13]} Nxf3+ {[%emt 0:02:17]} 22. gxf3 {[%emt 0:00:07]} Bxd5 {[%emt 0:02:00]} 23. Rxd5 {[%emt 0:02:12]} Ne7 {[%emt 0:02:41]} 24. Rd1 {[%emt 0:01:47]} b5 {[%emt 0:10:13]} 25. axb5 axb5 {[%emt 0:00:01]} 26. Qg2 {[%emt 0:02:15]} Kh7 {[%emt 0:01:19]} 27. Qf1 {[%emt 0:02:20]} b4 {[%emt 0:00:56]} 28. Nb5 {[%emt 0:00:54]} d5 {[%emt 0:02:17]} 29. Na7 {[%emt 0:00:56]} Qg6+ {[%emt 0:00:32]} 30. Qg2 {[%emt 0:01:08]} Qxg2+ {[%emt 0:00:48]} 31. Kxg2 {[%emt 0:00:04]} Rxc2 {[%emt 0:00:25]} 32. exd5 {[%emt 0:00:19]} Rxf2+ {[%emt 0:01:02]} 33. Kg1 {[%emt 0:00:17]} Rxd5 {[%emt 0:02:09]} 34. Rxd5 {[%emt 0:00:21]} Nxd5 {[%emt 0:00:01]} 35. Nc6 {[%emt 0:00:11]} f6 {[%emt 0:01:55]} 0-1

[Event "European Womens-ch 2025"]
[Site "Rhodes"]
[Date "2025.04.01"]
[Round "2.25"]
[White "Zimina, Olga"]
[Black "Korenova, Martina"]
[Result "1/2-1/2"]
[Annotator "RC"]
[ECO "D02"]
[WhiteElo "2293"]
[BlackElo "2045"]
[PlyCount "121"]
[EventDate "2025.03.29"]
[EventType "swiss"]
[EventCountry "GRE"]
[SourceTitle "playchess.com"]
[Source "ChessBase"]
[SourceQuality "1"]
[TimeControl "40/5400+30:1800+30"]

1. d4 {[%emt 0:00:03]} Nf6 {[%emt 0:00:31]} 2. Nf3 {[%emt 0:00:07]} g6 {[%emt 0:00:14]} 3. Nbd2 {[%emt 0:00:07]} d5 {[%emt 0:00:45]} 4. g3 {[%emt 0:01:56]} Bg7 {[%emt 0:00:28]} 5. Bg2 {[%emt 0:00:06]} O-O {[%emt 0:00:16]} 6. O-O {[%emt 0:00:05]} Ne4 {[%emt 0:04:49]} 7. Nxe4 {[%emt 0:06:31]} dxe4 {[%emt 0:00:09]} 8. Ne5 {[%emt 0:00:12]} f6 {[%emt 0:07:57]} 9. Nc4 {[%emt 0:00:19]} Be6 {[%emt 0:02:06]} 10. Ne3 {[%emt 0:09:50]} f5 {[%emt 0:00:24]} 11. d5 {[%emt 0:00:25]} Bf7 {[%emt 0:00:44]} 12. f3 {[%emt 0:04:27]} exf3 {[%emt 0:01:06]} 13. Bxf3 {[%emt 0:01:15]} Nd7 {[%emt 0:05:22]} 14. c4 {[%emt 0:00:48]} Ne5 {[%emt 0:00:45]} 15. Bg2 {[%emt 0:00:06]} c6 {[%emt 0:01:17]} 16. Qb3 {[%emt 0:07:00]} Qb6 {[%emt 0:07:18]} 17. Kh1 {[%emt 0:21:42]} Rfd8 {[%emt 0:01:09]} 18. Rd1 {[%emt 0:01:46]} Rd7 {[%emt 0:06:57]} 19. Bd2 {[%emt 0:05:25]} e6 {[%emt 0:05:13]} 20. dxc6 {[%emt 0:08:33]} Nxc6 {[%emt 0:12:14]} 21. Qxb6 {[%emt 0:01:45]} axb6 {[%emt 0:00:08]} 22. Bc3 {[%emt 0:00:18]} Rxd1+ {[%emt 0:05:50]} 23. Nxd1 {[%emt 0:00:06]} Nd4 {[%emt 0:05:13]} 24. e3 {[%emt 0:14:41]} Nb3 {[%emt 0:04:15]} 25. Bxb7 {[%emt 0:02:24]} Ra7 {[%emt 0:00:16]} 26. Rb1 {[%emt 0:00:06]} Rxa2 {[%emt 0:02:33]} 27. Bc6 {[%emt 0:04:24]} Ra7 {[%emt 0:05:27]} 28. Nf2 {[%emt 0:03:22]} Bxc3 {[%emt 0:04:39]} 29. bxc3 {[%emt 0:00:06]} Nd2 {[%emt 0:03:18]} 30. Rxb6 {[%emt 0:00:56]} Nxc4 {[%emt 0:00:19]} 31. Rb8+ {[%emt 0:00:13]} Kg7 {[%emt 0:00:04]} 32. e4 {[%emt 0:01:07]} Ne3 {[%emt 0:00:21]} 33. h4 {[%emt 0:01:19]} Rc7 {[%emt 0:01:48]} 34. Rb6 {[%emt 0:00:18]} Nc4 {[%emt 0:00:20]} 35. Ra6 {[%emt 0:00:15]} Ne5 {[%emt 0:00:27]} 36. Ba8 {[%emt 0:02:01]} Rxc3 {[%emt 0:00:23]} 37. Kg2 {[%emt 0:00:03]} Rc2 {[%emt 0:02:58]} 38. Kf1 {[%emt 0:00:06]} Kf6 {[%emt 0:01:06]} 39. Ra7 {[%emt 0:02:42]} h6 {[%emt 0:00:52]} 40. Ra6 {[%emt 0:00:00]} Be8 {[%emt 0:00:00]} 41. Kg1 {[%emt 0:04:43]} Bc6 {[%emt 0:04:54]} 42. Bxc6 {[%emt 0:04:00]} Nxc6 {[%emt 0:01:41]} 43. Ra8 {[%emt 0:01:25]} fxe4 {[%emt 0:12:10]} 44. Nxe4+ {[%emt 0:00:33]} Ke5 {[%emt 0:01:32]} 45. Nf2 {[%emt 0:00:15]} h5 {[%emt 0:03:44]} 46. Ra4 {[%emt 0:01:49]} Rd2 {[%emt 0:04:24]} 47. Nh3 {[%emt 0:04:38]} Nd4 {[%emt 0:02:10]} 48. Ra5+ {[%emt 0:07:49]} Kf6 {[%emt 0:01:13]} 49. Ng5 {[%emt 0:01:47]} Rd1+ {[%emt 0:01:13]} 50. Kf2 {[%emt 0:00:26]} e5 {[%emt 0:03:12]} 51. Ne4+ {[%emt 0:00:55]} Kf5 {[%emt 0:01:08]} 52. Nd6+ {[%emt 0:00:12]} Ke6 {[%emt 0:00:38]} 53. Nc4 {[%emt 0:00:36]} Nc6 {[%emt 0:05:05]} 54. Rc5 {[%emt 0:00:17]} Ne7 {[%emt 0:00:25]} 55. Rxe5+ {[%emt 0:00:58]} Kf6 {[%emt 0:00:17]} 56. Ra5 {[%emt 0:00:23]} Rb1 {[%emt 0:01:54]} 57. Ra6+ {[%emt 0:00:38]} Kf5 {[%emt 0:01:13]} 58. Ne3+ {[%emt 0:03:52]} Ke5 {[%emt 0:00:32]} 59. Kf3 {[%emt 0:00:03]} Rb3 {[%emt 0:00:36]} 60. Ra5+ {[%emt 0:00:09]} Ke6 {[%emt 0:00:42]} 61. Ra6+ {[%emt 0:00:24]} 1/2-1/2

[Event "European Womens-ch 2025"]
[Site "Rhodes"]
[Date "2025.04.01"]
[Round "2.26"]
[White "Tsolakidou, Stavroula"]
[Black "Kosma, Maria"]
[Result "1-0"]
[Annotator "TA"]
[ECO "A14"]
[WhiteElo "2445"]
[BlackElo "1826"]
[PlyCount "59"]
[EventDate "2025.03.29"]
[EventType "swiss"]
[EventCountry "GRE"]
[SourceTitle "playchess.com"]
[Source "ChessBase"]
[SourceQuality "1"]
[TimeControl "40/5400+30:1800+30"]

{[%evp 11,59,10,13,-2,-6,-13,-8,-8,-13,-10,-17,-17,-17,-17,30,0,16,-8,-8,-8,-6,-5,35,37,41,0,86,1,7,-30,-27,-31,199,194,330,281,412,402,402,335,443,439,679,679,635,476,29993,29994,29994,1472]} 1. c4 {[%emt 0:01:48]} e6 {[%emt 0:00:20]} 2. g3 {[%emt 0:00:16]} d5 {[%emt 0:00:09]} 3. Bg2 {[%emt 0:00:07]} Nf6 {[%emt 0:00:40]} 4. Nf3 {[%emt 0:00:09]} Be7 {[%emt 0:00:47]} 5. O-O {[%emt 0:00:12]} O-O {[%emt 0:00:20]} 6. d3 {[%emt 0:00:59]} c5 {[%emt 0:02:51]} 7. Ne5 $1 {[%emt 0:00:45][%mdl 4] is recently more successful than 7.Nc3. A14: English Opening: 1...e6 with b3 by White.} Qc7 {[%emt 0:02:48]} 8. f4 {[%emt 0:01:07]} Rd8 {[%emt 0:07:37]} 9. Nc3 {[%emt 0:00:31] The position is equal.} a6 {[%emt 0:02:02] Dodges Nb5} 10. e4 $146 {[%emt 0:10:08]} (10. Qe1 b5 11. cxb5 axb5 12. Nxb5 Qb6 13. a4 Ba6 14. Bd2 Bxb5 15. axb5 Rxa1 16. Qxa1 Qxb5 {½-½ Yu,Y (2720)-Giri,A (2762) Shenzhen Longgang 5th 2024 (7)}) 10... dxe4 {[%emt 0:06:01]} 11. Nxe4 {[%emt 0:00:29]} Nxe4 {[%emt 0:00:58]} 12. Bxe4 {[%emt 0:00:07]} Bf6 {[%emt 0:01:23]} (12... Bd6 $142) 13. Qe2 {[%emt 0:02:23]} g6 {[%emt 0:09:52][%cal Of6g7]} (13... Nd7 $5) 14. Bd2 {[%emt 0:18:36]} Bg7 {[%emt 0:04:27][%cal Of7f6] Black wants to play ...f6!.} 15. Bg2 {[%emt 0:06:12]} Nd7 {[%emt 0:15:10][%cal Rd7e5]} 16. Rae1 {[%emt 0:03:46][%cal Oe5f7]} Qd6 {[%emt 0:09:48]} 17. Ba5 {[%emt 0:04:42]} Re8 {[%emt 0:02:34]} 18. h4 {[%emt 0:06:08]} f6 {[%emt 0:04:04]} (18... Rb8 $11) 19. Ng4 {[%emt 0:04:52] White has more active pieces.} (19. Nxd7 $16 {and Nb6 should not be overlooked} Bxd7 20. Bxb7) 19... Rb8 $11 {[%emt 0:04:09]} 20. Kh2 {[%emt 0:18:12][%cal Of4f5]} b5 {[%emt 0:03:40]} 21. f5 {[%emt 0:02:33]} h5 $2 {[%emt 0:06:57] [#] Black cannot hold the game after this.} (21... gxf5 $15 {keeps the upper hand.} 22. Rxf5 Bb7) 22. Ne3 $1 $18 {[%emt 0:05:35]} (22. Nf2 gxf5 23. Qxh5 Re7 $11) 22... Bb7 {[%emt 0:08:19]} (22... exf5 $142 23. Nxf5 Rxe2 24. Nxd6 Rxb2) 23. fxg6 {[%emt 0:01:13]} Nf8 {[%emt 0:00:09]} (23... Bxg2 $142 24. Kxg2 (24. Nxg2 f5 $16) 24... f5 25. Qxh5 Nf6) 24. Bxb7 {[%emt 0:01:39]} ({Weaker is} 24. Qxh5 Bxg2 25. Nxg2 bxc4 $18) 24... Rxb7 {[%emt 0:00:05] [#]} 25. Nf5 {[%emt 0:00:17][%mdl 512] Against Ree7} exf5 {[%emt 0:04:22]} (25... Qd7 26. Bc3) 26. Qxe8 {[%emt 0:00:05]} bxc4 {[%emt 0:00:04]} (26... Qxd3 $142 27. Qe2 Qxe2+ 28. Rxe2 Nxg6 29. Rxf5 Ne5) 27. dxc4 {[%emt 0:00:59]} Rxb2+ {[%emt 0:00:08]} 28. Re2 {[%emt 0:00:12]} Rb8 {[%emt 0:02:31]} (28... Rxe2+ $18 29. Qxe2 Nxg6 30. Qe8+ (30. Rxf5 Ne5 $18) (30. Qxh5 Qd3 $18) 30... Nf8 31. Qxh5 Qe5 32. Rxf5 Qb2+ 33. Kh3 Qc1) 29. Qf7+ {[%emt 0:01:16]} Kh8 {[%emt 0:00:42]} 30. Re7 {[%emt 0:02:20] Weighted Error Value: White=0.36/Black=0.85  Loses game:     	---       	Black=1      Mistake:       	White=1     	Black=5      Inaccurate:     	White=3     	Black=2      OK:         	White=8     	Black=8      Strong:       	White=1     	---} (30. Rxf5 $142 Qe5 31. Rexe5 (31. Rfxe5 fxe5 32. Bc7 Rb7 33. Rxe5 Bh6 34. g7+ Bxg7 35. Rxh5+ Nh7 36. Qe8+ Bf8 37. Qxf8#) 31... Rb2+ 32. Kh3 Bh6 33. Rxh5 (33. Rxf6 Rb1 34. g7+ Bxg7 35. Rxh5+ Nh7 36. Qe8+ Bf8 37. Qxf8#) (33. Qxf6+ Kg8 34. Qf7+ Kh8 35. Rxh5 Rh2+ 36. Kxh2 Nxg6 37. Rxh6#) 33... Rh2+ 34. Kxh2 fxe5 35. Qxf8#) 1-0

[Event "European Womens-ch 2025"]
[Site "Rhodes"]
[Date "2025.04.01"]
[Round "2.27"]
[White "Chelushkina, Irina"]
[Black "Wagner, Dinara"]
[Result "0-1"]
[Annotator "RC"]
[ECO "A13"]
[WhiteElo "2134"]
[BlackElo "2440"]
[PlyCount "124"]
[EventDate "2025.03.29"]
[EventType "swiss"]
[EventCountry "GRE"]
[SourceTitle "playchess.com"]
[Source "ChessBase"]
[SourceQuality "1"]
[TimeControl "40/5400+30:1800+30"]

1. Nf3 {[%emt 0:00:04]} d5 {[%emt 0:00:04]} 2. c4 {[%emt 0:01:10]} e6 {[%emt 0:00:42]} 3. g3 {[%emt 0:00:54]} dxc4 {[%emt 0:00:54]} 4. Qa4+ {[%emt 0:00:24]} Nd7 {[%emt 0:00:25]} 5. Qxc4 {[%emt 0:00:34]} a6 {[%emt 0:00:52]} 6. d3 {[%emt 0:03:51]} Ngf6 {[%emt 0:02:38]} 7. Qc2 {[%emt 0:02:29]} b6 {[%emt 0:05:20]} 8. Bg2 {[%emt 0:01:49]} Bb7 {[%emt 0:00:05]} 9. O-O {[%emt 0:00:03]} c5 {[%emt 0:00:19]} 10. b3 {[%emt 0:00:10]} Be7 {[%emt 0:00:55]} 11. Bb2 {[%emt 0:00:05]} O-O {[%emt 0:00:32]} 12. Nbd2 {[%emt 0:00:09]} Rc8 {[%emt 0:00:43]} 13. Rfe1 {[%emt 0:01:10]} Nb8 {[%emt 0:16:14]} 14. Rad1 {[%emt 0:01:23]} Nc6 {[%emt 0:00:55]} 15. Qb1 {[%emt 0:00:05]} b5 {[%emt 0:11:50]} 16. Rc1 {[%emt 0:02:10]} Qb6 {[%emt 0:00:42]} 17. Qa1 {[%emt 0:15:08]} Rfd8 {[%emt 0:00:56]} 18. h3 {[%emt 0:05:21]} h6 {[%emt 0:06:47]} 19. Ne4 {[%emt 0:06:50]} Nxe4 {[%emt 0:01:37]} 20. dxe4 {[%emt 0:00:17]} Bf8 {[%emt 0:00:13]} 21. Qb1 {[%emt 0:05:52]} Nd4 {[%emt 0:10:52]} 22. Nh2 {[%emt 0:04:17]} a5 {[%emt 0:06:28]} 23. Nf1 {[%emt 0:06:10]} Qa6 {[%emt 0:01:18]} 24. Rcd1 {[%emt 0:06:26]} a4 {[%emt 0:02:49]} 25. b4 {[%emt 0:06:26]} Qb6 {[%emt 0:04:28]} 26. e3 {[%emt 0:02:30]} Nc6 {[%emt 0:00:15]} 27. bxc5 {[%emt 0:00:10]} Bxc5 {[%emt 0:00:09]} 28. Rxd8+ {[%emt 0:00:07]} Rxd8 {[%emt 0:00:34]} 29. Rd1 {[%emt 0:00:31]} a3 {[%emt 0:10:35]} 30. Ba1 {[%emt 0:00:36]} Rxd1 {[%emt 0:01:10]} 31. Qxd1 {[%emt 0:00:02]} Nb4 {[%emt 0:00:12]} 32. Qb3 {[%emt 0:03:43]} Qa6 {[%emt 0:02:11]} 33. Nd2 {[%emt 0:08:11]} Qa4 {[%emt 0:00:28]} 34. Bf1 {[%emt 0:01:37]} Qxb3 {[%emt 0:00:23]} 35. Nxb3 {[%emt 0:00:06]} Be7 {[%emt 0:00:04]} 36. f3 {[%emt 0:08:00]} Nxa2 {[%emt 0:09:29]} 37. Bxb5 {[%emt 0:00:47]} Nb4 {[%emt 0:00:02]} 38. Kf2 {[%emt 0:00:28]} f5 {[%emt 0:04:36]} 39. Bc4 {[%emt 0:04:57]} fxe4 {[%emt 0:00:16]} 40. Bxe6+ {[%emt 0:00:00]} Kf8 {[%emt 0:00:00]} 41. fxe4 {[%emt 0:35:58]} Bxe4 {[%emt 0:02:48]} 42. Ke2 {[%emt 0:00:00]} g6 {[%emt 0:13:52]} 43. Kd2 {[%emt 0:00:00]} Bd6 {[%emt 0:00:09]} 44. g4 {[%emt 0:00:00]} Nd3 {[%emt 0:00:46]} 45. Kc3 {[%emt 0:00:00]} Ke7 {[%emt 0:01:48]} 46. Bc4 {[%emt 0:00:00]} Nf2 {[%emt 0:00:07]} 47. Bf1 {[%emt 0:00:00]} Bd5 {[%emt 0:00:04]} 48. Kc2 {[%emt 0:00:00]} Ne4 {[%emt 0:02:08]} 49. Be2 {[%emt 0:00:00]} Nf2 {[%emt 0:04:34]} 50. Bg7 {[%emt 0:00:00]} Nxh3 {[%emt 0:01:27]} 51. Bd3 {[%emt 0:00:00]} h5 {[%emt 0:02:57]} 52. gxh5 {[%emt 0:00:00]} gxh5 {[%emt 0:00:02]} 53. e4 {[%emt 0:00:30]} Be6 {[%emt 0:00:03]} 54. e5 {[%emt 0:01:11]} Bb4 {[%emt 0:01:02]} 55. Bh6 {[%emt 0:02:01]} a2 {[%emt 0:00:30]} 56. Na1 {[%emt 0:00:05]} Nf2 {[%emt 0:01:15]} 57. Bg5+ {[%emt 0:00:25]} Kf7 {[%emt 0:00:09]} 58. Be2 {[%emt 0:00:27]} Kg6 {[%emt 0:00:12]} 59. Bd2 {[%emt 0:00:29]} Bxd2 {[%emt 0:02:10]} 60. Kxd2 {[%emt 0:00:01]} Ng4 {[%emt 0:00:23]} 61. Kd3 {[%emt 0:01:06]} Kf5 {[%emt 0:00:45]} 62. Kd4 {[%emt 0:00:01]} h4 {[%emt 0:00:29]} 0-1

[Event "European Womens-ch 2025"]
[Site "Rhodes"]
[Date "2025.04.01"]
[Round "2.28"]
[White "Javakhishvili, Lela"]
[Black "Rodshtein, Tereza"]
[Result "1-0"]
[Annotator "RC"]
[ECO "A39"]
[WhiteElo "2429"]
[BlackElo "2171"]
[PlyCount "99"]
[EventDate "2025.03.29"]
[EventType "swiss"]
[EventCountry "GRE"]
[SourceTitle "playchess.com"]
[Source "ChessBase"]
[SourceQuality "1"]
[TimeControl "40/5400+30:1800+30"]

1. Nf3 {[%emt 0:00:07]} c5 {[%emt 0:00:30]} 2. g3 {[%emt 0:02:53]} Nf6 {[%emt 0:02:26]} 3. Bg2 {[%emt 0:00:14]} Nc6 {[%emt 0:04:59]} 4. c4 {[%emt 0:02:11]} g6 {[%emt 0:01:00]} 5. O-O {[%emt 0:01:31]} Bg7 {[%emt 0:00:31]} 6. d4 {[%emt 0:03:12]} cxd4 {[%emt 0:05:14]} 7. Nxd4 {[%emt 0:00:07]} O-O {[%emt 0:14:52]} 8. Nc3 {[%emt 0:00:25]} Qa5 {[%emt 0:04:55]} 9. Nb3 {[%emt 0:01:51]} Qh5 {[%emt 0:01:05]} 10. e4 {[%emt 0:07:54]} d6 {[%emt 0:03:30]} 11. Qxh5 {[%emt 0:07:52]} Nxh5 {[%emt 0:01:04]} 12. Be3 {[%emt 0:06:23]} Nb4 {[%emt 0:04:34]} 13. Bg5 {[%emt 0:05:30]} Bf6 {[%emt 0:10:51]} 14. Bh6 {[%emt 0:17:46]} Bg7 {[%emt 0:02:50]} 15. Bxg7 {[%emt 0:00:09]} Nxg7 {[%emt 0:00:11]} 16. c5 {[%emt 0:03:27]} dxc5 {[%emt 0:02:35]} 17. Nxc5 {[%emt 0:00:35]} e5 {[%emt 0:06:11]} 18. Nd5 {[%emt 0:03:45]} Nc6 {[%emt 0:05:59]} 19. Nf6+ {[%emt 0:04:17]} Kh8 {[%emt 0:00:03]} 20. f4 {[%emt 0:00:41]} exf4 {[%emt 0:04:51]} 21. gxf4 {[%emt 0:00:50]} Ne6 {[%emt 0:01:27]} 22. Nb3 {[%emt 0:02:47]} Kg7 {[%emt 0:03:06]} 23. e5 {[%emt 0:02:49]} Rd8 {[%emt 0:08:06]} 24. Rf2 {[%emt 0:05:07]} g5 {[%emt 0:02:25]} 25. fxg5 {[%emt 0:01:19]} Nxg5 {[%emt 0:00:09]} 26. h4 {[%emt 0:01:16]} Nh3+ {[%emt 0:00:46]} 27. Bxh3 {[%emt 0:00:07]} Bxh3 {[%emt 0:00:01]} 28. Kh2 {[%emt 0:00:53]} Be6 {[%emt 0:00:51]} 29. Rg1+ {[%emt 0:00:43]} Kf8 {[%emt 0:00:27]} 30. Nc5 {[%emt 0:04:32]} Ke7 {[%emt 0:02:34]} 31. Nxe6 {[%emt 0:00:15]} Kxe6 {[%emt 0:00:08]} 32. Nxh7 {[%emt 0:00:11]} Nxe5 {[%emt 0:02:20]} 33. Rf6+ {[%emt 0:06:16]} Kd5 {[%emt 0:03:16]} 34. Ng5 {[%emt 0:01:33]} Rh8 {[%emt 0:01:33]} 35. Kg3 {[%emt 0:00:55]} Rad8 {[%emt 0:01:11]} 36. Rf5 {[%emt 0:01:24]} f6 {[%emt 0:01:14]} 37. Rxf6 {[%emt 0:00:36]} Rhf8 {[%emt 0:00:29]} 38. Rd1+ {[%emt 0:01:22]} Kc4 {[%emt 0:00:28]} 39. Rc1+ {[%emt 0:01:14]} Kd3 {[%emt 0:00:25]} 40. Rc3+ {[%emt 0:00:00]} Kd2 {[%emt 0:00:00]} 41. Rxf8 {[%emt 0:08:51]} Rxf8 {[%emt 0:00:47]} 42. Rc7 {[%emt 0:00:42]} Rb8 {[%emt 0:03:57]} 43. Nf3+ {[%emt 0:03:20]} Nxf3 {[%emt 0:00:04]} 44. Kxf3 {[%emt 0:00:02]} a5 {[%emt 0:06:21]} 45. h5 {[%emt 0:00:22]} b5 {[%emt 0:01:17]} 46. h6 {[%emt 0:00:29]} Rb6 {[%emt 0:00:54]} 47. h7 {[%emt 0:00:16]} Rh6 {[%emt 0:00:05]} 48. Kg4 {[%emt 0:00:44]} b4 {[%emt 0:09:43]} 49. Kg5 {[%emt 0:00:18]} Rh2 {[%emt 0:00:06]} 50. b3 {[%emt 0:01:22]} 1-0

[Event "European Womens-ch 2025"]
[Site "Rhodes"]
[Date "2025.04.01"]
[Round "2.29"]
[White "Stefanova, Antoaneta"]
[Black "Abdinova, Narmin"]
[Result "1-0"]
[Annotator "RC"]
[ECO "A09"]
[WhiteElo "2426"]
[BlackElo "2165"]
[PlyCount "73"]
[EventDate "2025.03.29"]
[EventType "swiss"]
[EventCountry "GRE"]
[SourceTitle "playchess.com"]
[Source "ChessBase"]
[SourceQuality "1"]
[TimeControl "40/5400+30:1800+30"]

1. Nf3 {[%emt 0:01:38]} d5 {[%emt 0:01:53]} 2. g3 {[%emt 0:00:29]} c5 {[%emt 0:00:50]} 3. Bg2 {[%emt 0:00:41]} Nf6 {[%emt 0:00:27]} 4. O-O {[%emt 0:00:37]} e6 {[%emt 0:00:39]} 5. c4 {[%emt 0:02:35]} d4 {[%emt 0:00:25]} 6. d3 {[%emt 0:00:56]} Nc6 {[%emt 0:00:15]} 7. e3 {[%emt 0:00:13]} h6 {[%emt 0:00:09]} 8. Re1 {[%emt 0:09:01]} Bd6 {[%emt 0:03:14]} 9. exd4 {[%emt 0:03:48]} cxd4 {[%emt 0:00:08]} 10. Na3 {[%emt 0:00:11]} O-O {[%emt 0:10:09]} 11. Nc2 {[%emt 0:05:37]} a5 {[%emt 0:00:30]} 12. b3 {[%emt 0:52:17]} Re8 {[%emt 0:11:24]} 13. Nfxd4 {[%emt 0:08:29]} Nxd4 {[%emt 0:00:30]} 14. Nxd4 {[%emt 0:00:04]} Be5 {[%emt 0:06:15]} 15. Nc6 {[%emt 0:02:18]} bxc6 {[%emt 0:01:50]} 16. Rxe5 {[%emt 0:00:05]} Qd4 {[%emt 0:02:52]} 17. Bf4 {[%emt 0:01:07]} g5 {[%emt 0:04:08]} 18. Re4 {[%emt 0:05:33]} Nxe4 {[%emt 0:03:55]} 19. Be3 {[%emt 0:00:09]} Qd7 {[%emt 0:07:27]} 20. Bxe4 {[%emt 0:00:22]} f5 {[%emt 0:06:34]} 21. Bg2 {[%emt 0:00:40]} Bb7 {[%emt 0:00:25]} 22. Qh5 {[%emt 0:01:03]} Qg7 {[%emt 0:00:16]} 23. Re1 {[%emt 0:00:59]} Kh7 {[%emt 0:03:25]} 24. Bb6 {[%emt 0:00:59]} Qf6 {[%emt 0:16:56]} 25. Bxa5 {[%emt 0:00:58]} Rg8 {[%emt 0:00:13]} 26. b4 {[%emt 0:01:04]} g4 {[%emt 0:00:12]} 27. Qh4 {[%emt 0:01:05]} Qf7 {[%emt 0:01:30]} 28. h3 {[%emt 0:00:38]} Rg5 {[%emt 0:04:48]} 29. hxg4 {[%emt 0:00:03]} Rxg4 {[%emt 0:02:06]} 30. Qh1 {[%emt 0:00:06]} Qd7 {[%emt 0:06:35]} 31. Bb6 {[%emt 0:00:36]} Rxa2 {[%emt 0:00:25]} 32. b5 {[%emt 0:00:37]} c5 {[%emt 0:04:46]} 33. Bxb7 {[%emt 0:01:19]} Rxg3+ {[%emt 0:00:17]} 34. Bg2 {[%emt 0:00:12]} Qd4 {[%emt 0:00:50]} 35. Rf1 {[%emt 0:00:31]} f4 {[%emt 0:01:06]} 36. Qh2 {[%emt 0:00:50]} Rg5 {[%emt 0:00:27]} 37. Kh1 {[%emt 0:00:35]} 1-0